bitfinex-derivatives/quotes_SOLF0:USTF0_20250730
["timestamp","ask_amount","ask_price","bid_price","bid_amount"]
[1753875427275,2.8286242,177.47,177.43,3.14]
[1753875427673,2.8286242,177.47,177.4,3.14]
[1753875428278,5.6369,177.42,177.4,3.14]
[1753875428574,2.8286242,177.47,177.4,3.14]
[1753875428779,5.6377,177.39,177.38,3.14]
[1753875429080,2.8286242,177.43,177.38,3.14]
[1753875429964,11.2688,177.5,177.38,3.14]
[1753875430168,2.8286242,177.44,177.38,3.14]
[1753875430368,5.6377,177.39,177.38,3.14]
[1753875434886,5.6375,177.4,177.38,3.14]
[1753875435078,2.8286242,177.42,177.38,3.14]
[1753875435679,5.6374,177.4,177.38,3.14]
[1753875437277,2.8286242,177.46,177.38,3.14]
[1753875437783,5.6368,177.42,177.38,8.7778]
[1753875437976,5.6368,177.42,177.39,3.14]
[1753875439389,5.6364,177.44,177.39,3.14]
[1753875439680,2.8286242,177.49,177.41,3.14]
[1753875439871,2.8286242,177.49,177.43,3.14]
[1753875440071,2.8286242,177.51,177.44,2.8286242]
[1753875440276,2.8286242,177.51,177.45,3.14]
[1753875440689,2.8286242,177.55,177.46,5.9686242]
[1753875440887,2.8286242,177.57,177.48,2.8286242]
[1753875441182,5.6328,177.55,177.51,3.14]
[1753875441780,5.6331,177.54,177.51,3.14]
[1753875441980,2.8286242,177.57,177.51,3.14]
[1753875442386,2.8286242,177.55,177.51,3.14]
[1753875442683,5.6335,177.52,177.51,3.14]
[1753875443385,5.6347,177.49,177.47,108.7086242]
[1753875443585,2.8286242,177.55,177.47,108.7086242]
[1753875443880,2.8286242,177.55,177.48,5.6347]
[1753875444189,2.8286242,177.55,177.49,3.26]
[1753875444879,2.8286242,177.58,177.5,3.26]
[1753875445280,5.6338,177.51,177.5,3.26]
[1753875447177,2.8286242,177.54,177.42,105.82]
[1753875447374,2.8286242,177.45,177.36,3.26]
[1753875447582,4.35517082,177.53,177.36,3.26]
[1753875447583,2.8286242,177.43,177.36,3.26]
[1753875448183,5.6379,177.39,177.36,3.26]
[1753875448380,2.8286242,177.43,177.36,3.26]
[1753875448589,2.8286242,177.41,177.37,3.26]
[1753875448795,2.8286242,177.39,177.34,109.06]
[1753875448982,2.8286242,177.39,177.32,147.95553185]
[1753875448983,2.8286242,177.39,177.35,3.26]
[1753875449180,7.47709989,177.48,177.35,3.26]
[1753875449181,2.8286242,177.37,177.35,3.26]
[1753875449382,5.6386,177.36,177.35,3.26]
[1753875449881,5.6395,177.34,177.32,3.26]
[1753875450077,2.8286242,177.37,177.32,3.26]
[1753875450284,2.8286242,177.37,177.29,108.6086242]
[1753875450589,5.6398,177.33,177.3,3.26]
[1753875450794,4.61873419,177.38,177.3,3.26]
[1753875451178,4.61873419,177.38,177.31,3.26]
[1753875451389,4.61873419,177.4,177.31,3.26]
[1753875451690,4.61873419,177.42,177.32,3.26]
[1753875451988,4.61873419,177.44,177.34,3.26]
[1753875452178,4.61873419,177.42,177.34,3.26]
[1753875452780,5.6382,177.38,177.34,3.26]
[1753875452982,4.61873419,177.42,177.34,3.26]
[1753875453386,5.6379,177.39,177.34,3.26]
[1753875454176,4.61873419,177.42,177.35,3.26]
[1753875454378,4.61873419,177.44,177.35,3.26]
[1753875454786,5.6373,177.41,177.35,3.26]
[1753875455088,4.61873419,177.44,177.35,3.26]
[1753875455388,5.6373,177.41,177.35,3.26]
[1753875455588,4.64847569,177.49,177.36,3.26]
[1753875455887,5.6364,177.43,177.37,3.26]
[1753875456089,5.6364,177.43,177.37,5.6382]
[1753875456391,5.6364,177.43,177.38,3.26]
[1753875456792,4.61873419,177.47,177.39,3.26]
[1753875457193,5.6361,177.44,177.39,3.26]
[1753875458087,5.6361,177.44,177.39,5.6376]
[1753875458292,5.6358,177.45,177.4,3.26]
[1753875458495,4.61873419,177.47,177.4,3.26]
[1753875458792,5.6358,177.45,177.4,3.26]
[1753875458991,4.61873419,177.47,177.4,3.26]
[1753875459792,5.6363,177.44,177.4,3.26]
[1753875460192,4.61873419,177.45,177.41,3.26]
[1753875460487,5.6371,177.41,177.39,3.26]
[1753875460687,5.6371,177.41,177.4,3.26]
[1753875462490,4.61873419,177.45,177.4,3.26]
[1753875462690,4.61873419,177.46,177.4,3.26]
[1753875463484,4.61873419,177.47,177.4,3.26]
[1753875463684,4.61873419,177.49,177.4,3.26]
[1753875464583,5.636,177.45,177.4,3.26]
[1753875465497,5.636,177.45,177.4,8.8973]
[1753875465792,5.636,177.45,177.41,3.26]
[1753875466387,5.6361,177.44,177.41,3.26]
[1753875466789,5.6359,177.45,177.41,3.26]
[1753875467693,4.61873419,177.49,177.42,3.26]
[1753875468589,5.6353,177.47,177.42,3.26]
[1753875468992,4.61873419,177.51,177.42,3.26]
[1753875469794,5.6355,177.46,177.42,5.6366]
[1753875469991,5.6355,177.46,177.43,3.26]
[1753875470595,4.61873419,177.53,177.44,3.26]
[1753875470997,4.61873419,177.51,177.44,3.26]
[1753875472296,5.635,177.48,177.44,3.26]
[1753875472897,5.6351,177.47,177.44,3.26]
[1753875474499,2.82971692,177.49,177.41,8.46661692]
[1753875474698,2.82971692,177.49,177.42,3.0]
[1753875475094,5.6357,177.46,177.42,3.0]
[1753875475499,5.6357,177.46,177.42,5.6367]
[1753875475701,5.6352,177.47,177.43,3.0]
[1753875476104,2.82971692,177.49,177.43,8.6361]
[1753875476293,5.6349,177.48,177.44,3.0]
[1753875477089,5.6352,177.47,177.44,3.0]
[1753875478502,5.6349,177.48,177.44,3.0]
[1753875478701,2.82971692,177.49,177.44,3.0]
[1753875479296,5.6354,177.47,177.44,3.0]
[1753875479891,2.82971692,177.49,177.43,3.0]
[1753875480703,2.82971692,177.49,177.44,3.0]
[1753875481100,5.6353,177.47,177.44,3.0]
[1753875481292,5.6353,177.47,177.36,105.68]
[1753875481293,2.82971692,177.47,177.4,3.0]
[1753875481706,2.82971692,177.47,177.42,5.6365]
[1753875481903,2.82971692,177.47,177.44,3.0]
[1753875482103,5.6359,177.45,177.39,2.82971692]
[1753875482295,5.6359,177.45,177.41,5.6368]
[1753875482702,5.6359,177.45,177.42,3.0]
[1753875483804,5.6359,177.45,177.43,3.0]
[1753875484003,5.6359,177.45,177.44,3.0]
[1753875486204,5.6362,177.44,177.4,5.6373]
[1753875486396,5.6362,177.44,177.43,3.0]
[1753875488001,2.82971692,177.45,177.36,105.68]
[1753875488208,2.82971692,177.48,177.37,3.0]
[1753875488397,2.82971692,177.43,177.37,3.0]
[1753875488599,2.82971692,177.43,177.4,3.0]
[1753875488806,2.82971692,177.43,177.41,3.0]
[1753875489507,5.6367,177.42,177.41,3.0]
[1753875490106,2.82971692,177.47,177.41,3.0]
[1753875490506,2.82971692,177.47,177.38,3.0]
[1753875491409,2.82971692,177.47,177.4,5.6371]
[1753875491609,2.82971692,177.47,177.41,3.0]
[1753875492111,5.6363,177.44,177.42,3.0]
[1753875493104,5.6357,177.46,177.43,3.0]
[1753875493507,2.82971692,177.49,177.43,3.0]
[1753875493707,4.41328254,177.48,177.43,3.0]
[1753875493906,2.82971692,177.49,177.43,3.0]
[1753875494102,5.6354,177.47,177.44,3.0]
[1753875494504,5.6354,177.47,177.44,5.636]
[1753875494710,5.6354,177.47,177.45,3.0]
[1753875496609,5.6354,177.46,177.45,3.0]
[1753875497712,5.6352,177.47,177.45,3.0]
[1753875498120,2.82971692,177.49,177.41,2.82971692]
[1753875498415,5.6351,177.47,177.46,3.0]
[1753875498616,5.6351,177.47,177.41,2.82971692]
[1753875498617,7.24667932,177.47,177.41,3.0]
[1753875498812,2.82971692,177.44,177.41,3.0]
[1753875499014,5.6367,177.42,177.41,3.0]
[1753875500215,5.6374,177.4,177.39,3.0]
[1753875500412,2.82971692,177.4,177.33,3.0]
[1753875500614,2.82971692,177.38,177.33,3.0]
[1753875500812,5.6388,177.36,177.35,3.0]
[1753875501212,5.6385,177.37,177.35,3.0]
[1753875501414,2.82971692,177.38,177.36,3.21]
[1753875502119,5.6383,177.37,177.36,3.21]
[1753875502425,2.82971692,177.38,177.33,3.21]
[1753875502614,2.82971692,177.35,177.29,3.21]
[1753875502814,2.82971692,177.3,177.29,3.21]
[1753875503209,2.82971692,177.3,177.21,6.03971692]
[1753875503515,2.82971692,177.26,177.21,3.21]
[1753875503714,2.82971692,177.26,177.22,3.21]
[1753875503914,2.82971692,177.26,177.23,3.21]
[1753875504317,2.82971692,177.26,177.24,3.21]
[1753875504921,4.62465137,177.26,177.24,3.21]
[1753875505112,4.62465137,177.27,177.21,3.21]
[1753875505617,5.6423,177.25,177.21,3.21]
[1753875506121,4.62465137,177.27,177.21,3.21]
[1753875506321,5.642,177.26,177.22,5.6429]
[1753875506621,5.642,177.26,177.2,105.52]
[1753875506820,5.642,177.26,177.25,3.21]
[1753875507121,15.92597569,177.36,177.21,3.21]
[1753875507122,4.62465137,177.29,177.21,3.21]
[1753875507316,4.62465137,177.31,177.21,3.21]
[1753875507516,10.26505137,177.31,177.21,3.21]
[1753875507918,10.26505137,177.31,177.22,4.62465137]
[1753875508118,10.26505137,177.31,177.28,3.21]
[1753875508325,5.6405,177.3,177.29,3.21]
[1753875508641,4.62465137,177.34,177.32,3.21]
[1753875508924,4.62465137,177.36,177.26,4.62465137]
[1753875509123,6.13376723,177.42,177.29,3.21]
[1753875509124,4.62465137,177.39,177.29,3.21]
[1753875509627,5.6384,177.37,177.29,3.21]
[1753875509815,5.6384,177.37,177.34,3.21]
[1753875510213,5.6384,177.37,177.33,5.6395]
[1753875510419,4.62465137,177.39,177.28,110.16465137]
[1753875510624,4.62465137,177.39,177.37,3.21]
[1753875511124,4.62465137,177.39,177.28,110.16465137]
[1753875511125,4.62465137,177.41,177.31,3.21]
[1753875511527,5.6374,177.4,177.36,5.6385]
[1753875511718,5.6374,177.4,177.38,3.21]
[1753875512220,10.26165137,177.41,177.39,3.21]
[1753875512420,5.637,177.41,177.4,3.21]
[1753875513524,4.62465137,177.43,177.33,3.21]
[1753875513825,4.62465137,177.43,177.38,5.6377]
[1753875514125,4.62465137,177.43,177.4,3.21]
[1753875514126,5.6369,177.42,177.4,3.21]
[1753875514319,4.64847569,177.5,177.41,3.21]
[1753875514520,5.6366,177.43,177.42,3.21]
[1753875515125,5.6369,177.42,177.4,3.21]
[1753875515320,4.62465137,177.44,177.38,3.21]
[1753875515523,4.64847569,177.5,177.38,3.21]
[1753875515720,6.13376723,177.53,177.4,3.21]
[1753875515721,5.6363,177.44,177.4,3.21]
[1753875516124,4.62465137,177.46,177.4,3.21]
[1753875516319,5.636,177.45,177.41,3.21]
[1753875516521,4.62465137,177.48,177.41,3.21]
[1753875517429,4.62465137,177.48,177.39,3.21]
[1753875518125,4.62465137,177.48,177.41,3.21]
[1753875519328,5.6358,177.45,177.41,3.21]
[1753875520727,5.6355,177.46,177.41,3.21]
[1753875521221,4.62465137,177.48,177.38,4.62465137]
[1753875521421,5.6352,177.47,177.42,3.21]
[1753875522323,5.6352,177.47,177.43,3.21]
[1753875522925,4.62465137,177.54,177.44,3.21]
[1753875523124,4.62465137,177.54,177.45,3.21]
[1753875523321,5.6338,177.51,177.46,5.6354]
[1753875523528,11.2627,177.59,177.47,3.21]
[1753875523831,9.00141371,177.58,177.48,4.62465137]
[1753875524031,4.62465137,177.58,177.49,3.21]
[1753875525133,4.62465137,177.58,177.51,3.21]
[1753875525727,4.62465137,177.56,177.51,3.21]
[1753875525928,4.62465137,177.54,177.47,3.21]
[1753875526234,4.62465137,177.52,177.43,3.21]
[1753875526637,4.62465137,177.52,177.44,3.21]
[1753875526828,4.62465137,177.5,177.44,3.21]
[1753875527035,5.6357,177.45,177.44,3.21]
[1753875529733,5.6355,177.46,177.44,3.21]
[1753875529932,5.6355,177.46,177.45,3.21]
[1753875530739,4.62465137,177.48,177.42,3.21]
[1753875531031,5.6363,177.44,177.41,147.62790413]
[1753875531238,5.6363,177.44,177.43,3.21]
[1753875535339,5.6367,177.42,177.41,150.89790413]
[1753875536335,5.6367,177.42,177.41,3.27]
[1753875545444,2.83166017,177.45,177.41,3.27]
[1753875545737,2.83166017,177.47,177.41,3.27]
[1753875546044,5.6353,177.47,177.43,5.6361]
[1753875546343,5.6353,177.47,177.44,3.27]
[1753875546944,4.64847569,177.56,177.44,3.27]
[1753875547148,2.83166017,177.45,177.44,3.27]
[1753875547644,8.46736017,177.45,177.44,3.27]
[1753875548343,2.83166017,177.45,177.39,5.6376]
[1753875548543,2.83166017,177.45,177.37,108.25166017]
[1753875548742,2.83166017,177.45,177.41,3.27]
[1753875548743,5.6365,177.43,177.41,3.27]
[1753875549040,2.83166017,177.45,177.41,3.27]
[1753875549838,5.6367,177.42,177.41,3.27]
[1753875551744,5.6376,177.4,177.38,3.27]
[1753875552249,2.83166017,177.43,177.39,3.27]
[1753875552442,5.6373,177.4,177.39,3.27]
[1753875553444,5.6371,177.41,177.39,3.27]
[1753875553648,2.83166017,177.43,177.39,3.27]
[1753875554153,5.6373,177.4,177.39,3.27]
[1753875554751,5.6368,177.42,177.39,3.27]
[1753875554950,2.83166017,177.46,177.39,3.27]
[1753875555154,4.42242202,177.45,177.4,3.27]
[1753875555455,2.83166017,177.46,177.4,3.27]
[1753875555659,4.42499023,177.45,177.4,3.27]
[1753875555860,2.83166017,177.46,177.4,3.27]
[1753875556061,5.6366,177.43,177.4,8.9072]
[1753875556357,5.6366,177.43,177.41,3.27]
[1753875557058,5.6366,177.43,177.41,5.637]
[1753875557257,5.6362,177.44,177.42,3.27]
[1753875557860,5.6359,177.45,177.42,3.27]
[1753875558261,2.83166017,177.46,177.42,3.27]
[1753875558458,4.43111596,177.45,177.42,3.27]
[1753875558759,2.83166017,177.44,177.37,105.28]
[1753875558961,5.6373,177.41,177.38,3.27]
[1753875559456,5.6368,177.42,177.38,3.27]
[1753875559863,2.83166017,177.45,177.38,3.27]
[1753875560056,5.6362,177.44,177.41,3.27]
[1753875560568,5.6359,177.45,177.42,3.27]
[1753875560763,4.4301642,177.44,177.42,3.27]
[1753875560959,2.83166017,177.47,177.42,3.27]
[1753875561159,4.43016826,177.46,177.42,3.27]
[1753875561356,10.06616826,177.45,177.42,3.27]
[1753875561561,5.636,177.45,177.42,3.27]
[1753875562467,5.6356,177.46,177.43,3.29]
[1753875562667,2.83166017,177.49,177.43,3.29]
[1753875562968,4.43060262,177.48,177.43,3.29]
[1753875563165,4.43060262,177.47,177.44,5.636]
[1753875563369,9.20065085,177.55,177.43,3.29]
[1753875563370,7.48013586,177.52,177.45,3.29]
[1753875563670,5.6342,177.5,177.46,8.9253]
[1753875563860,4.42946112,177.49,177.48,3.29]
[1753875564061,4.42946112,177.49,177.46,3.29]
[1753875564466,5.6351,177.47,177.46,3.29]
[1753875565666,2.83166017,177.5,177.46,3.29]
[1753875565867,2.83166017,177.52,177.46,3.29]
[1753875566069,4.43073051,177.51,177.46,3.29]
[1753875566267,5.6347,177.49,177.46,3.29]
[1753875566870,5.6347,177.49,177.46,5.6354]
[1753875567071,4.64847569,177.56,177.47,3.29]
[1753875567371,427.2965,177.57,177.47,3.29]
[1753875567372,2.83166017,177.53,177.47,3.29]
[1753875567571,4.42989248,177.52,177.48,3.29]
[1753875567768,2.83166017,177.53,177.48,3.29]
[1753875567975,4.42960324,177.52,177.48,3.29]
[1753875568170,2.83166017,177.53,177.49,3.29]
[1753875568369,4.42932256,177.52,177.49,3.29]
[1753875568572,2.83166017,177.53,177.49,3.29]
[1753875568776,5.6342,177.5,177.49,3.29]
[1753875569076,2.83166017,177.53,177.49,3.29]
[1753875569274,5.634,177.51,177.49,3.29]
[1753875569469,2.83166017,177.55,177.49,3.29]
[1753875569668,5.6334,177.53,177.49,5.6343]
[1753875569867,5.6334,177.53,177.5,3.29]
[1753875570273,5.6335,177.52,177.5,3.29]
[1753875570775,5.6338,177.51,177.5,3.29]
[1753875570972,5.6338,177.51,177.47,8.925]
[1753875571172,5.6338,177.51,177.49,3.29]
[1753875571375,2.83166017,177.55,177.5,3.29]
[1753875572271,5.6333,177.53,177.5,3.29]
[1753875573979,5.6336,177.52,177.5,3.29]
[1753875574279,5.6336,177.52,177.48,5.6347]
[1753875574480,5.6336,177.52,177.51,3.29]
[1753875575280,5.6333,177.53,177.51,3.29]
[1753875575480,5.6333,177.53,177.52,3.29]
[1753875576676,5.633,177.54,177.52,3.29]
[1753875576876,2.83166017,177.55,177.52,3.29]
[1753875577071,2.83166017,177.55,177.49,5.6344]
[1753875577476,2.83166017,177.55,177.5,3.29]
[1753875577682,2.83166017,177.53,177.48,3.29]
[1753875577981,2.83166017,177.53,177.46,3.29]
[1753875578176,5.6343,177.5,177.46,8.9251]
[1753875578370,2.83166017,177.53,177.46,8.9251]
[1753875578371,2.83166017,177.53,177.46,3.29]
[1753875579082,5.6336,177.52,177.49,3.29]
[1753875580473,5.6339,177.51,177.49,3.29]
[1753875580675,2.83166017,177.55,177.49,3.29]
[1753875581476,5.6337,177.52,177.5,3.29]
[1753875581877,5.6328,177.55,177.5,3.29]
[1753875582078,2.83166017,177.57,177.52,3.29]
[1753875582278,2.83166017,177.57,177.5,3.29]
[1753875582581,5.6331,177.54,177.51,3.29]
[1753875582878,2.83166017,177.55,177.48,3.29]
[1753875583181,2.83166017,177.51,177.49,3.29]
[1753875583376,2.83166017,177.51,177.5,3.29]
[1753875583982,8.46566017,177.51,177.5,3.29]
[1753875584376,5.6344,177.5,177.48,3.29]
[1753875584573,2.83166017,177.51,177.43,2.83166017]
[1753875584778,2.83166017,177.49,177.47,3.29]
[1753875584971,5.6351,177.48,177.47,3.29]
[1753875585173,2.83166017,177.49,177.45,5.6356]
[1753875585378,2.83166017,177.49,177.47,3.29]
[1753875585585,8.46616017,177.49,177.48,3.29]
[1753875586682,5.6345,177.49,177.48,3.29]
[1753875586987,2.83166017,177.53,177.48,3.29]
[1753875587781,2.83166017,177.57,177.49,3.29]
[1753875587978,15.90867569,177.63,177.51,3.29]
[1753875588186,2.83166017,177.59,177.51,3.29]
[1753875589185,2.83166017,177.61,177.53,3.29]
[1753875589688,5.6314,177.59,177.56,3.29]
[1753875590081,5.6314,177.59,177.56,5.632]
[1753875590386,5.6314,177.59,177.57,3.29]
[1753875590887,2.83166017,177.62,177.55,3.29]
[1753875591280,5.6317,177.58,177.55,8.9226]
[1753875591588,5.6317,177.58,177.56,3.12]
[1753875591784,2.83166017,177.62,177.56,3.12]
[1753875591982,5.6312,177.6,177.57,3.12]
[1753875592687,5.6314,177.59,177.57,3.12]
[1753875593084,2.83166017,177.62,177.57,3.12]
[1753875593389,2.83166017,177.62,177.58,3.12]
[1753875594085,5.6307,177.61,177.58,3.12]
[1753875596884,5.631,177.6,177.58,3.12]
[1753875597088,2.83166017,177.62,177.57,3.12]
[1753875597285,2.83166017,177.62,177.55,3.12]
[1753875597888,5.6312,177.6,177.56,5.6323]
[1753875598089,5.6312,177.6,177.57,3.12]
[1753875598390,2.83166017,177.62,177.57,3.12]
[1753875598591,5.6315,177.59,177.57,3.12]
[1753875598792,2.83166017,177.64,177.57,8.7519]
[1753875599094,2.83166017,177.68,177.6,2.83166017]
[1753875599289,2.83166017,177.68,177.61,3.12]
[1753875599490,5.6296,177.65,177.61,3.12]
[1753875599684,2.83166017,177.69,177.61,3.12]
[1753875600087,5.6299,177.64,177.61,3.12]
[1753875600888,2.83166017,177.68,177.62,3.12]
[1753875601095,105.02,177.73,177.63,3.12]
[1753875601387,416.27376723,177.77,177.68,3.12]
[1753875601388,414.78847569,177.77,177.68,3.12]
[1753875601600,2.83166017,177.74,177.68,3.12]
[1753875601989,5.6281,177.69,177.68,3.12]
[1753875602185,2.83166017,177.72,177.65,3.12]
[1753875602389,2.83166017,177.7,177.62,3.12]
[1753875602601,5.6291,177.67,177.62,8.7501]
[1753875602790,2.83166017,177.7,177.63,3.12]
[1753875602985,2.83166017,177.7,177.63,5.95166017]
[1753875603193,2.83166017,177.75,177.69,3.12]
[1753875603395,4.3924712,177.74,177.69,3.12]
[1753875603695,5.6263,177.75,177.7,3.12]
[1753875603889,4.64847569,177.81,177.7,3.12]
[1753875604086,5.6255,177.78,177.72,3.12]
[1753875604395,5.6255,177.78,177.73,5.6266]
[1753875604592,5.6255,177.78,177.74,3.12]
[1753875604789,104.98,177.82,177.75,2.83166017]
[1753875604987,9.30666383,177.81,177.76,3.12]
[1753875605186,5.6246,177.81,177.76,3.12]
[1753875605395,410.02,177.87,177.76,3.12]
[1753875605396,2.83166017,177.83,177.76,3.12]
[1753875605594,2.83166017,177.81,177.76,3.12]
[1753875605893,2.83166017,177.81,177.74,3.12]
[1753875606193,2.83166017,177.77,177.69,3.12]
[1753875606394,5.6268,177.74,177.69,3.12]
[1753875606591,2.83166017,177.77,177.68,2.83166017]
[1753875606790,2.83166017,177.77,177.69,3.12]
[1753875606990,5.6266,177.74,177.69,3.12]
[1753875607190,2.83166017,177.77,177.69,3.12]
[1753875607395,2.83166017,177.77,177.72,3.12]
[1753875607692,4.64847569,177.84,177.72,5.95166017]
[1753875607896,2.83166017,177.81,177.75,3.12]
[1753875608097,5.6256,177.78,177.75,3.12]
[1753875608496,2.83166017,177.81,177.75,3.12]
[1753875609190,5.6252,177.79,177.76,3.12]
[1753875609901,5.6253,177.78,177.76,3.12]
[1753875610088,2.83166017,177.8,177.76,3.12]
[1753875610489,5.6267,177.74,177.7,2.83166017]
[1753875610688,2.83166017,177.78,177.7,2.83166017]
[1753875610900,2.83166017,177.76,177.67,104.92]
[1753875611103,2.83166017,177.76,177.68,5.95166017]
[1753875611293,2.83166017,177.76,177.69,3.12]
[1753875611791,5.6276,177.71,177.69,3.12]
[1753875612397,2.83166017,177.76,177.69,3.12]
[1753875612699,2.83166017,177.78,177.71,3.12]
[1753875612902,4.5971397,177.8,177.71,3.12]
[1753875613102,4.37123825,177.79,177.72,3.12]
[1753875613297,4.5971397,177.8,177.72,3.12]
[1753875613600,4.37019141,177.79,177.72,3.12]
[1753875613808,4.5971397,177.8,177.72,3.12]
[1753875614102,5.6269,177.73,177.72,3.12]
[1753875614401,4.5971397,177.78,177.69,3.12]
[1753875615502,5.6271,177.73,177.69,8.7481]
[1753875615805,5.6271,177.73,177.7,3.12]
[1753875616100,5.6272,177.73,177.7,3.12]
[1753875616492,4.5971397,177.78,177.7,3.12]
[1753875616696,5.6271,177.73,177.7,3.12]
[1753875617000,4.5971397,177.78,177.7,3.12]
[1753875617603,4.5971397,177.78,177.71,3.12]
[1753875618101,5.6271,177.73,177.71,3.12]
[1753875618403,4.5971397,177.76,177.71,3.12]
[1753875618605,5.6275,177.72,177.68,3.12]
[1753875618902,5.6275,177.72,177.69,5.6281]
[1753875619103,5.6275,177.72,177.7,3.12]
[1753875619297,5.6275,177.71,177.7,3.12]
[1753875619600,4.5971397,177.72,177.65,143.27817969]
[1753875619802,5.6286,177.68,177.66,3.12]
[1753875620001,4.5971397,177.72,177.66,8.7489]
[1753875620200,4.5971397,177.72,177.67,3.12]
[1753875621705,5.6283,177.69,177.67,3.12]
[1753875622004,4.5971397,177.72,177.67,3.12]
[1753875622901,5.6285,177.68,177.67,3.12]
[1753875624100,5.6293,177.66,177.65,3.31]
[1753875626001,5.6293,177.66,177.61,104.88]
[1753875626002,5.6302,177.63,177.62,3.31]
[1753875629010,5.6298,177.64,177.62,3.31]
[1753875629213,4.5971397,177.7,177.62,3.31]
[1753875629406,15.88336487,177.74,177.62,3.31]
[1753875629607,4.5971397,177.7,177.63,3.31]
[1753875630109,5.6291,177.66,177.63,3.31]
[1753875630510,4.5971397,177.68,177.63,3.31]
[1753875630810,4.5971397,177.67,177.63,3.31]
[1753875631208,5.6304,177.62,177.61,104.88]
[1753875631409,5.6304,177.62,177.57,104.88]
[1753875631614,5.6304,177.62,177.58,3.31]
[1753875632212,4.5971397,177.65,177.59,3.31]
[1753875632609,4.5971397,177.67,177.59,3.31]
[1753875633318,5.6299,177.64,177.61,5.6307]
[1753875633613,4.5971397,177.67,177.62,3.31]
[1753875633813,5.6297,177.64,177.63,3.31]
[1753875635618,5.6304,177.62,177.59,3.31]
[1753875635816,2.82506121,177.66,177.59,3.31]
[1753875636405,5.6309,177.61,177.59,3.31]
[1753875636612,11.257,177.68,177.6,3.31]
[1753875636814,2.82506121,177.62,177.6,3.31]
[1753875637311,5.6307,177.61,177.6,3.31]
[1753875639419,2.82506121,177.62,177.57,3.31]
[1753875639721,2.82506121,177.59,177.57,3.31]
[1753875640115,5.6316,177.58,177.57,3.31]
[1753875646419,2.82506121,177.59,177.52,104.86]
[1753875646420,5.633,177.54,177.52,104.86]
[1753875646721,5.633,177.54,177.53,3.31]
[1753875649626,5.6323,177.56,177.53,3.31]
[1753875649820,2.82506121,177.61,177.53,6.13506121]
[1753875650015,2.82506121,177.59,177.54,3.31]
[1753875650215,5.6328,177.55,177.54,3.31]
[1753875651018,2.82506121,177.55,177.51,3.31]
[1753875651225,2.82506121,177.53,177.49,3.31]
[1753875652231,5.6339,177.51,177.49,3.31]
[1753875652935,5.6342,177.5,177.49,3.31]
[1753875654728,5.6345,177.49,177.48,104.86]
[1753875654931,5.6345,177.49,177.48,108.1]
[1753875656430,8.45956121,177.49,177.48,3.24]
[1753875656637,2.82506121,177.49,177.47,3.24]
[1753875657134,5.6357,177.46,177.43,104.86]
[1753875657828,5.6357,177.46,177.44,3.24]
[1753875658028,5.6357,177.45,177.44,3.24]
[1753875658830,5.6355,177.46,177.44,3.24]
[1753875659937,5.6357,177.45,177.44,3.24]
[1753875660439,8.46076121,177.45,177.44,3.24]
[1753875661829,2.82506121,177.51,177.44,6.06506121]
[1753875662041,2.82506121,177.51,177.45,3.24]